Cogmind - Beta 10.2 @@@ ROGUE MODE // 2022.02.02 @ 23:11:28 Player: User Result: Destroyed by ZQ-7D7(M) with Barrage Gun Performance ------------- Evolutions (1) 500 Regions Visited (4) 800 Robots Destroyed (22) 110 Value Destroyed (653) 653 Prototype IDs (1) 20 Alien Tech Used (0) 0 Bonus (695) 695 TOTAL SCORE: 2778 Bonus ------- Pacifist 200 Met Imprinter 300 Was Imprinted 300 Friendly Fire -105 Cogmind --------- Core Integrity 0/400 Matter 300/300 Energy 100/100 System Corruption 7% Temperature Cool (20) Movement Core (450) Ox8 Location -7/Zion Parts ------- > --- POWER (1) -------- (None) > --- PROPULSION (2) --- (None) > --- UTILITY (4) ------ Small Storage Unit Large Storage Unit Mobile Refinery Mk. CCLXVII > --- WEAPON (2) ------- (None) > --- INVENTORY (12) --- Light Ion Engine Aluminum Leg Aluminum Leg Aluminum Leg Heat Sink Improved Heat Sink Makeshift Terrain Scanner Propulsion Shielding Bomb Drone Bay Peak State ------------ > --- POWER ------------ Light Nuclear Core > --- PROPULSION ------- Improved Aluminum Leg Makeshift Leg > --- UTILITY ---------- Small Storage Unit Large Storage Unit Hacking Suite Mobile Refinery Mk. CCLXVII > --- WEAPON ----------- Particle Gun Makeshift Laser > --- INVENTORY -------- Light Ion Engine Aluminum Leg Aluminum Leg Aluminum Leg Heat Sink Improved Heat Sink Makeshift Terrain Scanner Propulsion Shielding Bomb Drone Bay Heavy Assault Rifle [Rating: 28] Favorites ----------- Power Light Nuclear Core Engine Improved Ion Engine Power Core Light Nuclear Core Propulsion Improved Aluminum Leg Treads Light Treads Leg Improved Aluminum Leg Utility Small Storage Unit Device Mobile Refinery Mk. CCLXVII Storage Small Storage Unit Processor Signal Interpreter Hackware Hacking Suite Weapon Particle Gun Energy Gun Particle Gun Ballistic Gun Heavy Assault Rifle Launcher Grenade Launcher Build | -11 -10 -9 -9 -7 ------- Run | Scr Mat Mat Min Zio Slots Evolved 2 | . . 2 . . Power . | . . . . . Propulsion . | . . . . . Utility 2 | . . 2 . . Weapon . | . . . . . Parts Attached 19 | . 3 8 4 4 Power 2 | . . 1 1 . Engine 1 | . . 1 . . Core 1 | . . . 1 . Reactor . | . . . . . Propulsion 6 | . 2 1 2 1 Treads 3 | . 2 1 . . Leg 3 | . . . 2 1 Wheel . | . . . . . Hover . | . . . . . Flight . | . . . . . Utility 4 | . 1 2 . 1 Device 1 | . . . . 1 Storage 1 | . 1 . . . Processor 1 | . . 1 . . Hackware 1 | . . 1 . . Protection . | . . . . . Artifact . | . . . . . Weapon 7 | . . 4 1 2 Energy Gun 3 | . . 1 1 1 Energy Cannon . | . . . . . Ballistic Gun 3 | . . 2 . 1 Ballistic Cannon . | . . . . . Launcher 1 | . . 1 . . Special Weapon . | . . . . . Impact Weapon . | . . . . . Slashing Weapon . | . . . . . Piercing Weapon . | . . . . . Special Melee Weapon . | . . . . . Unidentified Prototypes 1 | . . . . 1 Parts Lost 12 | . . 4 1 7 Power 2 | . . . 1 1 Propulsion 2 | . . . . 2 Utility 1 | . . . . 1 Weapon 7 | . . 4 . 3 Highest Loss Streak 7 | . . 1 2 7 Average Slot Usage (%) 96 | . 89 85 99 98 Engine 2 | . 14 11 . . Core 8 | . . . 10 10 Treads 6 | . 7 22 6 . Leg 16 | . 20 . 16 21 Device 1 | . . . . 4 Storage 21 | . 17 22 22 22 Processor 7 | . . 4 11 6 Hackware 9 | . . 3 11 10 Energy Gun 12 | . . 8 10 17 Ballistic Gun 8 | . 28 12 11 3 Naked Turns . | . . . . . Heaviest Build 36 | 12 28 31 31 36 Greatest Support 40 | 20 40 40 40 33 Greatest Overweight (x) 1 | . . . 1 1 Average Overweight (x) . | . . . . . Largest Inventory Capacity 12 | 6 12 12 12 12 Average Capacity 11 | 6 7 12 12 12 Most Carried 12 | 6 6 6 8 12 Average Carried 7 | 6 5 4 6 10 Final Capacity 12 | 6 12 12 12 12 Final Carried 10 | 6 6 3 8 10 Class Distribution -------------------- 83% | Scavenger-Mutant 16% | Mutant Dominant Class ---------------- Mutant | -10/Materials Mutant | -9/Materials Scavenger-Mutant | -9/Mines Scavenger-Mutant | -7/Zion Resources | -11 -10 -9 -9 -7 ----------- Run | Scr Mat Mat Min Zio Matter Collected 589 | 200 . 217 140 32 Remotely . | . . . . . Salvage Created 912 | . . 536 376 . Parts 49 | . . 33 16 . Haulers Intercepted 1 | . . 1 . . Recyclers Shooed 5 | . . 1 4 . Parts Field Recycled . | . . . . . Retrieved Matter . | . . . . . Parts Self-Destructed . | . . . . . Prevented . | . . . . . Kills | -11 -10 -9 -9 -7 ------- Run | Scr Mat Mat Min Zio Combat Hostiles Destroyed 16 | . . 11 5 . Guns 11 | . . 6 5 . AOE 5 | . . 5 . . Classes Destroyed 7 | . . 6 1 . Worker 1 | . . 1 . . Hauler 1 | . . 1 . . Recycler 3 | . . 1 2 . Operator 1 | . . 1 . . Grunt 12 | . . 8 4 . Duelist 1 | . . . 1 . Sentry 3 | . . 3 . . Best Kill Streak 5 | . . 5 3 . Combat Bots Only 5 | . . 5 3 . Max Kills in Single Turn 2 | . . 2 1 . Gunslinging . | . . . . . Exploded 2 | . . 2 . . Melee . | . . . . . Uniques/NPCs Destroyed . | . . . . . Combat | -11 -10 -9 -9 -7 -------- Run | Scr Mat Mat Min Zio Damage Taken 1726 | . . 642 282 802 Core 404 | . . 82 58 264 Absorbed by Shields . | . . . . . Core Remaining (%) 100 | 100 100 . . . Volleys Fired 79 | . . 45 29 5 Largest 2 | . . 2 2 2 Hottest 115 | . . 63 88 115 Shots Fired 130 | . . 78 45 7 Gun 124 | . . 72 45 7 Cannon . | . . . . . Launcher 6 | . . 6 . . Special . | . . . . . Kinetic 73 | . . 42 29 2 Thermal 51 | . . 30 16 5 Explosive 6 | . . 6 . . Electromagnetic . | . . . . . Robot Hit Streak 13 | . . 8 13 6 Robot Miss Streak 3 | . . 3 2 1 Penetration Max . | . . . . . Secondary Targets 1 | . . 1 . . Max Gunslinging Chain 1 | . . 1 . . Shots Hit Robots 90 | . . 49 35 6 Core Hits 49 | . . 33 12 4 Critical Hits . | . . . . . Critical Kills . | . . . . . Critical Parts Destroyed . | . . . . . Melee Attacks . | . . . . . Impact . | . . . . . Slashing . | . . . . . Piercing . | . . . . . Sneak Attacks . | . . . . . Combat Hostiles . | . . . . . Follow-up Attacks . | . . . . . Damage Inflicted 1465 | . . 777 572 116 Guns 1232 | . . 552 572 108 Cannons . | . . . . . Explosions 225 | . . 225 . . Melee . | . . . . . Ramming 8 | . . . . 8 Kinetic 633 | . . 272 336 25 Thermal 599 | . . 280 236 83 Explosive 225 | . . 225 . . Electromagnetic . | . . . . . Impact . | . . . . . Slashing . | . . . . . Piercing . | . . . . . Highest Corruption 7 | . . . . 7 Average Corruption 4 | . . . . 4 Corruption Purged . | . . . . . Effects 1 | . . . . 1 Matter Fused 1 | . . . . 1 Overload Shots . | . . . . . Overflow Damage . | . . . . . Projectiles . | . . . . . Explosions . | . . . . . Melee . | . . . . . Knockbacks . | . . . . . Impact . | . . . . . Kinetic . | . . . . . Secondary . | . . . . . Self-Inflicted Damage . | . . . . . Shots . | . . . . . Rammed 3 | . . . . 3 Targets Rammed 4 | . . . . 4 Kicked 1 | . . . . 1 Crushed . | . . . . . Highest Temperature 240 | . . 47 240 184 Average Temperature 58 | . . 13 88 97 Received Heat Transfer 750 | . . 264 126 360 Effects 4 | . . . 4 . Interference 4 | . . . 4 . Siege Activations . | . . . . . Robots Corrupted . | . . . . . Combat Hostiles . | . . . . . Parts Fried . | . . . . . Impact Corruptions . | . . . . . Robots Melted . | . . . . . Combat Hostiles . | . . . . . Parts Melted 1 | . . . 1 . Heat Transferred 1290 | . . 625 592 73 Parts Sabotaged . | . . . . . Parts Stolen . | . . . . . Parts Stripped . | . . . . . Power Chain Reactions . | . . . . . Missiles Intercepted . | . . . . . Alert | -11 -10 -9 -9 -7 ------- Run | Scr Mat Mat Min Zio Peak Influence 292 | . . 292 229 . Initial 109 | . . . 109 . Average 137 | . . 198 131 . Maximum Alert Level 1 | . . 1 1 . Low Security (%) 60 | 100 100 45 60 . Level 1 39 | . . 54 39 . Level 2 . | . . . . . Level 3 . | . . . . . Level 4 . | . . . . . Level 5 . | . . . . . High Security . | . . . . . Max Security . | . . . . . Squads Dispatched 2 | . . 2 . . Investigation . | . . . . . Extermination . | . . . . . Reinforcement 2 | . . 2 . . Assault . | . . . . . Garrison . | . . . . . Intercept . | . . . . . Construction Impeded . | . . . . . Haulers Reinforced . | . . . . . Stealth | -11 -10 -9 -9 -7 --------- Run | Scr Mat Mat Min Zio Distress Signals 1 | . . 1 . . Communications Jammed . | . . . . . Distress Signals . | . . . . . Times Spotted 32 | . . 21 5 6 Peak Tracking Total 9 | . . 6 3 9 Tactical Retreats 1 | . . 1 . . Traps | -11 -10 -9 -9 -7 ------- Run | Scr Mat Mat Min Zio Traps Triggered . | . . . . . Indirectly . | . . . . . Trap Hack Attempts . | . . . . . Triggered . | . . . . . Disarmed . | . . . . . Reprogrammed . | . . . . . Reused . | . . . . . Traps Extracted . | . . . . . Installed . | . . . . . Triggered . | . . . . . Machines | -11 -10 -9 -9 -7 ---------- Run | Scr Mat Mat Min Zio Machines Disabled . | . . . . . Max in Single Turn . | . . . . . Machines Sabotaged . | . . . . . Garrisons Compromised . | . . . . . Overloaded Fab Kills . | . . . . . Fab Network Shutdowns . | . . . . . Hacking | -11 -10 -9 -9 -7 --------- Run | Scr Mat Mat Min Zio Machines Accessed 1 | . . . 1 . Terminals . | . . . . . Fabricators . | . . . . . Repair Stations . | . . . . . Recycling Units . | . . . . . Scanalyzers . | . . . . . Garrison Access . | . . . . . Total Hacks 1 | . . . 1 . Successful 1 | . . . 1 . Failed . | . . . . . Catastrophic . | . . . . . Database Lockouts . | . . . . . Manual . | . . . . . Terminals . | . . . . . Fabricators . | . . . . . Repair Stations . | . . . . . Recycling Units . | . . . . . Scanalyzers . | . . . . . Garrison Access . | . . . . . Terminal Hacks 1 | . . . 1 . Open Door 1 | . . . 1 . Fabricator Hacks . | . . . . . Repair Station Hacks . | . . . . . Recycling Unit Hacks . | . . . . . Scanalyzer . | . . . . . Garrison Access Hacks . | . . . . . Unauthorized Hacks . | . . . . . Terminals . | . . . . . Fabricators . | . . . . . Repair Stations . | . . . . . Recycling Units . | . . . . . Scanalyzers . | . . . . . Garrison Access . | . . . . . Data Cores Recovered . | . . . . . Used . | . . . . . Hacking Detections . | . . . . . Full Trace Events . | . . . . . Feedback Events . | . . . . . Feedback Blocked . | . . . . . Robot Schematics Acquired . | . . . . . Robots Built . | . . . . . Matter . | . . . . . Time . | . . . . . Total Robot Build Rating . | . . . . . Part Schematics Acquired . | . . . . . Parts Built . | . . . . . Matter . | . . . . . Time . | . . . . . Total Part Build Rating . | . . . . . Parts Repaired . | . . . . . Time . | . . . . . Parts Recycled . | . . . . . Recycled Matter . | . . . . . Retrieved Matter . | . . . . . Retrieved Components . | . . . . . Parts Scanalyzed . | . . . . . Part Schematics Acquired . | . . . . . Parts Damaged . | . . . . . Bothacking | -11 -10 -9 -9 -7 ------------ Run | Scr Mat Mat Min Zio Used RIF Installer . | . . . . . Robots Hacked . | . . . . . Non-combat . | . . . . . Combat . | . . . . . Robot Hacks Applied . | . . . . . Relay Couplers Released . | . . . . . Robots Rewired . | . . . . . Allies Hacked . | . . . . . Hacks Repelled . | . . . . . Allies | -11 -10 -9 -9 -7 -------- Run | Scr Mat Mat Min Zio Total Allies 7 | . . . 3 4 Largest Group 7 | . . . 3 7 Highest-Rated Group 191 | . . . 40 191 Highest-Rated Ally 39 | . . . 16 39 Total Orders . | . . . . . Ally Attacks 20 | . . . . 20 Total Damage 215 | . . . . 215 Kills . | . . . . . Allies Corrupted . | . . . . . Allies Melted . | . . . . . Intel | -11 -10 -9 -9 -7 ------- Run | Scr Mat Mat Min Zio Robot Analysis Total . | . . . . . Derelict Logs Recovered 3 | . . . 1 2 Drone Launches . | . . . . . Drone Recoveries . | . . . . . Exploration | -11 -10 -9 -9 -7 ------------- Run | Scr Mat Mat Min Zio Turns Passed 1919 | 5 108 311 656 839 Spaces Moved 1109 | 5 78 112 359 555 Core . | . . . . . Treads 191 | . 18 112 61 . Legs 918 | 5 60 . 298 555 Wheels . | . . . . . Hover . | . . . . . Flight . | . . . . . Fastest Speed 120 | 120 120 160 150 130 Average Speed 147 | 120 129 160 151 145 Slowest Speed 160 | 120 160 160 160 160 Overloaded Moves . | . . . . . Propulsion Burnouts . | . . . . . Robots Hopped . | . . . . . Cave-ins Triggered . | . . . . . Exploration Rate (%) 36 | 2 17 21 68 73 Regions Visited 4 Branch Regions 2 Pre-discovered Areas . | . . . . . Known Exits Taken 2 | . . 1 1 . Unknown Exits Taken 2 | 1 1 . . . Scrap Searched 3 | . . . 1 2 Spaces Dug . | . . . . . Terrain Destroyed 31 | . . 31 . . Melee . | . . . . . Projectile . | . . . . . AOE 31 | . . 31 . . Terrain Rammed . | . . . . . Walls Destroyed . | . . . . . Machines Disabled . | . . . . . Actions | -11 -10 -9 -9 -7 --------- Run | Scr Mat Mat Min Zio Total 1257 | 4 85 170 425 573 Wait 24 | . . . 24 . Move 1105 | 4 77 111 358 555 Hop . | . . . . . Pick Up 19 | . 3 4 8 4 Fast Attach . | . . . . . Attach 10 | . 1 5 2 2 Detach . | . . . . . Swap 9 | . 2 3 2 2 Drop 7 | . 2 2 2 1 Fire 79 | . . 45 29 5 Melee . | . . . . . Ram 2 | . . . . 2 Kick 2 | . . . . 2 Crush . | . . . . . Escape Stasis . | . . . . . Rewire . | . . . . . Trap . | . . . . . Miscellaneous . | . . . . . Route ------- -11/Scrapyard -10/Materials -9/Materials -9/Mines (discovered 2 exits: [*Mat] / *Zio) -7/Zion History --------- Turn | Location | Event 1 | -11/Scrapyard | Discovered new exit (range 2) 6 | -11/Scrapyard | Entered Materials 102 | -10/Materials | Discovered new exit (range 7) 114 | -10/Materials | Entered another Materials area 114 | -9/Materials | Evolved 2 slots: Utility x2 300 | -9/Materials | Build established: Mutant 381 | -9/Materials | Discovered new exit (range 13) 423 | -9/Materials | Identified exit to Mines 425 | -9/Materials | Entered Mines 448 | -9/Mines | Met a Derelict bent on vengeance 662 | -9/Mines | Found the Drone Emporium 670 | -9/Mines | Found Prototype Device 762 | -9/Mines | Build established: Scavenger-Mutant 866 | -9/Mines | Assisted by bots powering up and referring to "LRC-V3" 976 | -9/Mines | A Derelict revealed a hidden shortcut to a safe place 978 | -9/Mines | Identified exit to Zion 1022 | -9/Mines | Discovered new exit (range 13) 1081 | -9/Mines | Entered Zion 1081 | -7/Zion | Accompanied by 3 allies 1195 | -7/Zion | Learned Factory emergency access door positions 1603 | -7/Zion | Found Prototype Device 1605 | -7/Zion | Identified Mobile Refinery Mk. CCLXVII 1865 | -7/Zion | Imprinted 1867 | -7/Zion | Declared Zion's savior 1889 | -7/Zion | Attacked by Zionites 1901 | -7/Zion | Extracted access codes from Imprinter's data core 1909 | -7/Zion | Core integrity fell below 50% 1918 | -7/Zion | Core integrity fell below 20% 1920 | -7/Zion | Destroyed by ZQ-7D7(M) with Barrage Gun Last Messages --------------- 01892_ Imprinter destroyed. 01892_ Trooper 2b destroyed. 01894_ Mak. Laser destroyed. 01896_ 7B-TUY(z) destroyed. 01901_ Acquired data core, extracted access codes \\TTXC, \\PEMK, \\PHX9, \\LMA3. 01904_ Trooper 2a destroyed. 01904_ Particle Gun destroyed. 01906_ 2O-ZZ6(M) suffers critical hit. 01908_ Hvy. Assault Rifle destroyed. 01909_ Lgt. Nuclear Core destroyed. 01910_ Kicked NU-ZPA(M) out of the way. 01911_ Slammed into NU-ZPA(M). 01911_ Mak. Leg destroyed. 01912_ Imp. Aluminum Leg destroyed. 01913_ Slammed into NU-ZPA(M). 01914_ System corrupted: Matter fused (-7). 01914_ Acquired 2 matter. 01917_ Slammed into NU-ZPA(M). 01917_ Hacking Suite destroyed. Map ----- +----------------------------------------------------+ | ????????????????????????????????"" | | ???????????????????????????????##" | | ????????????????????????????####""" | | ????????????????????????????#""#"""" | | ???????????????##????????????"""""""" | | ???????????????""##########??#" """ | | ????????????????""""""##""####" | | ???????#######?#"#""""""""#"""" | | ?????""""""""" #"#" """"" " | | ????"""""""""" ?#"" "" | | ????"" ?#"" "" | | ???????""" ##"" """""" " | | ???????"""" """""#""""" | | ???????"""" "#""##""#"" | | ???????"""" ""########" | | ???????""" ###" "##???#"" "" | | ????"" #""" ""#???#" " | | ????"""""""""" ###" ""#???#"" | | ?????""""""""" ###" "##???#### | | ???????#######?#""" "#??????## | | ???????????#####""# "#??????#" | | ??????????##"""#### #"#?????##" | | ??????????#" g #"#?????#"" | | ??????????#" #?????###"" " | | ??????????#"M #????##"""" " | | ??????????##@M*#### #????#""""" | | ???????????#%M%#??######???##"" | | ??????######!M=#######?????#"" " | | ????""""""""% = """"""??###" """ " | | ????"######"!=c ######"??#"""" """ | | ????"# " " " #"???#"""""""" " | | ????"# c #"??###""""""" " | | ??"""#" #"""#""" """" " | | ??"""#" #"""#""" """ " | | ??"""# # #"" " | | ?# # " " #"" | | ?# " "" # #"" | | ?# # " " #" #""" | | ?# "# """"" "#"" #"""" ! | | ?# ""# " " #"""#""""""" ! | | ??"""# #"""#"##"""" " | | ??"""#"" #"""?"?###"" "" | | ??"""#""" #"""???#""" | | ????"? """ ""#"?????#""" | | ????"??" " "#"?????#""" """ | | ????"??####### ######?"????#""" "#" | | ????"""""""""" """""""????#"" "## | | ????????"""""" """????????##" """ | | ????????"""""" """????????#""""""""# | | ???????????????????????????####""#"## | +----------------------------------------------------+ Best States ------------- Heat Dissipation 28 Energy Generation 14 Energy Capacity 265 Matter Stores 300 Matter Capacity 300 Sight Range 16 Terrain Scan Density 10 Evasion (%) 40 Recoil Reduction 2 Offensive Hacking 10 Item Schematics ----------------- None Robot Schematics ------------------ None Fabricated ------------ Nothing Alien Tech Used ----------------- None Achievements -------------- None Challenges ------------ None Game ------ Seed ThrusterSigixHumpback Manual? 0 Play Time 00:14:12 Cumulative 45.0 hours Start 2022.02.02 @ 22:59:03 End 2022.02.02 @ 23:11:28 Sessions 1 Manual Loads 0 Difficulty Rogue Special Mode None Game No. 83 Rogue 83 Adventurer 0 Explorer 0 Win Type - Total 0 Types 0/0/0/0/0/0/0/0/0 Lore% 36 Gallery% 47 Achievement% 28 Wizard Run 0 Options --------- ASCII 0 Keyboard 0 Movement Mouse Keybinds 0 Fullscreen 2 Font 20/Terminus Map View 66x50 Tactical HUD 1 Map Filters NONE Filters NONE Steam 1 RUN: 10715509-ece4-4dce-b21d-67026532b4fc